Workbook

Sheet Statistics
A1: Overall | B1: First GPS Time | C1: =INDEX(GPSLOG!C2:INDIRECT("GPSLOG!C"&A5),MATCH(FALSE,ISBLANK(GPSLOG!C2:INDIRECT("GPSLOG!C"&A5)),0)) -> 13:38:01 | D1: Last GPS Time | E1: =INDIRECT("GPSLOG!C"&A5) -> 14:00:10
A2: Iterations | B2: Average Speed | C2: Max Speed | D2: Max Lat Accel | E2: Min Lat Accel | F2: Max Long Accel | G2: Min Lon Accel | H2: Max Pitch | I2: Min Pitch | J2: Max Roll | K2: Min Roll
A3: =MAX(GPSLOG!A:A) -> 26568 | B3: =AVERAGE(Speed) -> 40.44549908 | C3: =MAX(Speed) -> 83.98539 | D3: =MAX(Lat_Accel) -> 14.91 | E3: =MIN(Lat_Accel) -> -21.34 | F3: =MAX(Long_Accel) -> 29.67 | G3: =MIN(Long_Accel) -> -23.09 | H3: =MAX(Pitch) -> 18.75 | I3: =MIN(Pitch) -> -36.9375 | J3: =MAX(Roll) -> 67.3125 | K3: =MIN(Roll) -> -46.4375
A4: Last Iteration Line | B4: Max Altitude | C4: Min Altitude
A5: =MATCH(A3,GPSLOG!$A:$A) -> 26570 | B5: =MAX(Altitude) -> 302.399994 | C5: =MIN(Altitude) -> 174.399994
A7: From (Iteration) | B7: To (Iteration) | C7: From's line | D7: To's line | E7: Range
A8: 1999 | B8: 4501 | C8: =MATCH(A8,GPSLOG!$A:$A) -> 2001 | D8: =MATCH(B8,GPSLOG!$A:$A) -> 4503 | E8: =D8-C8 -> 2502
A9: From (Time) | B9: To (Time)
A10: =INDIRECT("GPSLOG!C"&Statistics!C8) -> 13:39:41 | B10: =INDIRECT("GPSLOG!C"&Statistics!D8) -> 13:41:46
A11: Average Speed | B11: Max Speed | C11: Max Lat Accel | D11: Min Lat Accel | E11: Max Long Accel | F11: Min Lon Accel | G11: Max Pitch | H11: Min Pitch | I11: Max Roll | J11: Min Roll
A12: =AVERAGE(INDIRECT("GPSLOG!J"&$C$8):INDIRECT("GPSLOG!J"&$D$8)) -> 4.775925769 | B12: =MAX(INDIRECT("GPSLOG!J"&$C$8):INDIRECT("GPSLOG!J"&$D$8)) -> 22.866398 | C12: =MAX(INDIRECT("GPSLOG!Q"&$C$8):INDIRECT("GPSLOG!Q"&$D$8)) -> 8.68 | D12: =MIN(INDIRECT("GPSLOG!Q"&$C$8):INDIRECT("GPSLOG!Q"&$D$8)) -> -8.49 | E12: =MAX(INDIRECT("GPSLOG!R"&$C$8):INDIRECT("GPSLOG!R"&$D$8)) -> 5.66 | F12: =MIN(INDIRECT("GPSLOG!R"&$C$8):INDIRECT("GPSLOG!R"&$D$8)) -> -7.66 | G12: =MAX(INDIRECT("GPSLOG!O"&$C$8):INDIRECT("GPSLOG!O"&$D$8)) -> -7.5 | H12: =MIN(INDIRECT("GPSLOG!O"&$C$8):INDIRECT("GPSLOG!O"&$D$8)) -> -14.5 | I12: =MAX(INDIRECT("GPSLOG!P"&$C$8):INDIRECT("GPSLOG!P"&$D$8)) -> 23.0625 | J12: =MIN(INDIRECT("GPSLOG!P"&$C$8):INDIRECT("GPSLOG!P"&$D$8)) -> -17.0625
A13: Max Altitude | B13: Min Altitude
A14: =MAX(INDIRECT("GPSLOG!M"&$C$8):INDIRECT("GPSLOG!M"&$D$8)) -> 225.100006 | B14: =MIN(INDIRECT("GPSLOG!M"&$C$8):INDIRECT("GPSLOG!M"&$D$8)) -> 223.800003

Sheet GPSLOG
AC1: Delta Speed ms2 | AD1: Filtered DS | AE1: Filtered Lat Accel | AF1: Filtered Long Accel | AG1: Filtered Vert Accel | AH1: Filtered X Accel | AI1: Filtered Y Accel | AJ1: Filtered Z Accel | AK1: Filtered AV H | AL1: Filtered AV P | AM1: Filtered AV R
AC2: =(1609.34/3600)*Delta_Speed -> 0
AC3: 0
AC4: 0
AC5: 0
AC6: 0 | AD6: =AVERAGE(#REF!) ->  | AE6: =AVERAGE(Q2:Q6) -> -0.242 | AF6: =AVERAGE(R2:R6) -> -0.018 | AG6: =AVERAGE(S2:S6) -> 0.186 | AH6: =AVERAGE(T2:T6) -> -2.068 | AI6: =AVERAGE(U2:U6) -> -2.27 | AJ6: =AVERAGE(V2:V6) -> 9.546 | AK6: =AVERAGE(W2:W6) -> 0.0099998 | AL6: =AVERAGE(X2:X6) -> -0.0166666 | AM6: =AVERAGE(Y2:Y6) -> 0.0106666
AC7: 0 | AD7: =AVERAGE(#REF!) ->  | AE7: -0.22 | AF7: -0.388 | AG7: 0.384 | AH7: -2.044 | AI7: -2.634 | AJ7: 9.748 | AK7: 0.0184442 | AL7: -0.0044444 | AM7: 0.0382222
AC8: 0 | AD8: =AVERAGE(#REF!) ->  | AE8: -0.238 | AF8: -0.5 | AG8: 0.388 | AH8: -2.064 | AI8: -2.74 | AJ8: 9.754 | AK8: 0.0197776 | AL8: 0.003111 | AM8: 0.034
AC9: 0 | AD9: =AVERAGE(#REF!) ->  | AE9: -0.288 | AF9: -0.45 | AG9: 0.35 | AH9: -2.118 | AI9: -2.678 | AJ9: 9.718 | AK9: 0.0297776 | AL9: 0.0008888 | AM9: 0.0355556
AC10: 0 | AD10: =AVERAGE(#REF!) ->  | AE10: -0.26 | AF10: -0.476 | AG10: 0.074 | AH10: -2.094 | AI10: -2.688 | AJ10: 9.442 | AK10: 0.017111 | AL10: 0.0055554 | AM10: 0.0326668
AC11: 0 | AD11: =AVERAGE(#REF!) ->  | AE11: -0.228 | AF11: -0.552 | AG11: 0.116 | AH11: -2.066 | AI11: -2.75 | AJ11: 9.488 | AK11: 0.0144442 | AL11: -0.0026668 | AM11: 0.032889
AC12: 0 | AD12: =AVERAGE(#REF!) ->  | AE12: -0.234 | AF12: -0.114 | AG12: -0.028 | AH12: -2.072 | AI12: -2.3 | AJ12: 9.346 | AK12: 0.0084442 | AL12: -0.010889 | AM12: 0.002889
AC13: 0 | AD13: =AVERAGE(#REF!) ->  | AE13: -0.17 | AF13: 0.058 | AG13: -0.036 | AH13: -2.006 | AI13: -2.116 | AJ13: 9.342 | AK13: 0.0059998 | AL13: -0.0144444 | AM13: 0.0033334
AC14: 0 | AD14: =AVERAGE(#REF!) ->  | AE14: -0.104 | AF14: 0.02 | AG14: -0.008 | AH14: -1.938 | AI14: -2.146 | AJ14: 9.372 | AK14: -0.0024446 | AL14: -0.013111 | AM14: 0.0008888
AC15: 0 | AD15: =AVERAGE(#REF!) ->  | AE15: -0.086 | AF15: -0.076 | AG15: 0.066 | AH15: -1.918 | AI15: -2.242 | AJ15: 9.446 | AK15: -0.0046668 | AL15: -0.0082222 | AM15: 0.0008888
AC16: 0 | AD16: =AVERAGE(#REF!) ->  | AE16: -0.11 | AF16: -0.086 | AG16: 0.074 | AH16: -1.946 | AI16: -2.252 | AJ16: 9.456 | AK16: -0.0084444 | AL16: -0.0046666 | AM16: -2e-07
AC17: 0 | AD17: =AVERAGE(#REF!) ->  | AE17: -0.016 | AF17: -0.086 | AG17: 0.082 | AH17: -1.852 | AI17: -2.254 | AJ17: 9.466 | AK17: -0.0057776 | AL17: -0.0042222 | AM17: 0.0026666
AC18: 0 | AD18: =AVERAGE(#REF!) ->  | AE18: -0.048 | AF18: -0.06 | AG18: 0.056 | AH18: -1.884 | AI18: -2.23 | AJ18: 9.438 | AK18: -0.0084444 | AL18: 0.0015556 | AM18: 0.0031112
AC19: 0 | AD19: =AVERAGE(#REF!) ->  | AE19: -0.06 | AF19: -0.004 | AG19: 0.076 | AH19: -1.902 | AI19: -2.176 | AJ19: 9.456 | AK19: -0.004 | AL19: 0.0051112 | AM19: 0.0013334
AC20: 0 | AD20: =AVERAGE(#REF!) ->  | AE20: -0.078 | AF20: 0.048 | AG20: 0.096 | AH20: -1.924 | AI20: -2.124 | AJ20: 9.476 | AK20: 0.0017778 | AL20: -0.005111 | AM20: 0.0017778
AC21: 0 | AD21: =AVERAGE(#REF!) ->  | AE21: -0.046 | AF21: 0.08 | AG21: 0.118 | AH21: -1.892 | AI21: -2.092 | AJ21: 9.496 | AK21: -0.0046668 | AL21: -0.0082222 | AM21: 0.0017778
AC22: 0 | AD22: =AVERAGE(#REF!) ->  | AE22: -0.076 | AF22: 0.094 | AG22: 0.06 | AH22: -1.918 | AI22: -2.076 | AJ22: 9.434 | AK22: 0.0008886 | AL22: -0.0088888 | AM22: 0.0004444
AC23: 0 | AD23: =AVERAGE(#REF!) ->  | AE23: 0.066 | AF23: 0.184 | AG23: 0.036 | AH23: -1.778 | AI23: -1.976 | AJ23: 9.41 | AK23: 0.0206664 | AL23: -0.0026666 | AM23: 0.0126666
AC24: 0 | AD24: =AVERAGE(#REF!) ->  | AE24: 0.074 | AF24: 0.134 | AG24: 0.032 | AH24: -1.77 | AI24: -2.018 | AJ24: 9.408 | AK24: 0.0186664 | AL24: -0.002 | AM24: 0.0117778
AC25: 0 | AD25: =AVERAGE(#REF!) ->  | AE25: 0.078 | AF25: 0.128 | AG25: 0.03 | AH25: -1.768 | AI25: -2.014 | AJ25: 9.408 | AK25: 0.0206664 | AL25: 0.0004444 | AM25: 0.0108888
AC26: 0 | AD26: =AVERAGE(#REF!) ->  | AE26: 0.082 | AF26: -0.022 | AG26: 0.074 | AH26: -1.77 | AI26: -2.152 | AJ26: 9.456 | AK26: 0.0328886 | AL26: 0.0115556 | AM26: 0.0095556
AC27: 0 | AD27: =AVERAGE(#REF!) ->  | AE27: 0.066 | AF27: 0.048 | AG27: 0.15 | AH27: -1.796 | AI27: -2.066 | AJ27: 9.538 | AK27: 0.026222 | AL27: 0 | AM27: 0.0122222
AC28: 0 | AD28: =AVERAGE(#REF!) ->  | AE28: -0.166 | AF28: -0.002 | AG28: 0.204 | AH28: -2.034 | AI28: -2.108 | AJ28: 9.594 | AK28: 0.0057776 | AL28: -0.0037778 | AM28: 0.0002222
AC29: 0 | AD29: =AVERAGE(#REF!) ->  | AE29: 0.182 | AF29: -0.2 | AG29: 0.156 | AH29: -1.682 | AI29: -2.3 | AJ29: 9.548 | AK29: -0.0035556 | AL29: -0.0242222 | AM29: 0.0042222
AC30: 0 | AD30: =AVERAGE(#REF!) ->  | AE30: 0.498 | AF30: -0.678 | AG30: 0.366 | AH30: -1.364 | AI30: -2.772 | AJ30: 9.76 | AK30: 0.0195554 | AL30: -0.0102222 | AM30: 0.0415556
AC31: 0 | AD31: =AVERAGE(#REF!) ->  | AE31: 0.446 | AF31: -0.596 | AG31: 0.34 | AH31: -1.412 | AI31: -2.686 | AJ31: 9.734 | AK31: 0.0128888 | AL31: -0.0286666 | AM31: 0.044
AC32: 0 | AD32: =AVERAGE(#REF!) ->  | AE32: 0.156 | AF32: -0.402 | AG32: -0.08 | AH32: -1.696 | AI32: -2.488 | AJ32: 9.312 | AK32: 0.0335554 | AL32: -0.0082222 | AM32: 0.0426668
AC33: 0 | AD33: =AVERAGE(#REF!) ->  | AE33: 0.184 | AF33: -0.358 | AG33: -0.088 | AH33: -1.662 | AI33: -2.44 | AJ33: 9.308 | AK33: 0.0348888 | AL33: -0.0086666 | AM33: 0.0431112
AC34: 0 | AD34: =AVERAGE(#REF!) ->  | AE34: -0.578 | AF34: 0.15 | AG34: -0.558 | AH34: -2.426 | AI34: -1.924 | AJ34: 8.84 | AK34: 0.0499998 | AL34: 0.0162222 | AM34: 0.0384446
AC35: 0 | AD35: =AVERAGE(#REF!) ->  | AE35: -0.894 | AF35: 0.55 | AG35: -0.69 | AH35: -2.74 | AI35: -1.526 | AJ35: 8.708 | AK35: 0.0095554 | AL35: 0.0086668 | AM35: -0.0057776
AC36: 0 | AD36: =AVERAGE(#REF!) ->  | AE36: -0.868 | AF36: 0.546 | AG36: -0.904 | AH36: -2.712 | AI36: -1.534 | AJ36: 8.49 | AK36: 0.0095554 | AL36: 0.0226668 | AM36: -0.0077776
AC37: 0 | AD37: =AVERAGE(#REF!) ->  | AE37: -0.652 | AF37: 0.206 | AG37: -0.828 | AH37: -2.494 | AI37: -1.892 | AJ37: 8.564 | AK37: -0.0295556 | AL37: -0.011111 | AM37: -0.0077776
AC38: 0 | AD38: =AVERAGE(#REF!) ->  | AE38: -0.546 | AF38: 0.198 | AG38: -1.058 | AH38: -2.382 | AI38: -1.914 | AJ38: 8.328 | AK38: -0.0233334 | AL38: -0.0166666 | AM38: -0.0084442
AC39: 0 | AD39: =AVERAGE(#REF!) ->  | AE39: 0.1 | AF39: -0.056 | AG39: -0.43 | AH39: -1.734 | AI39: -2.178 | AJ39: 8.954 | AK39: -0.0113334 | AL39: 0.001778 | AM39: -0.0095554
AC40: 0 | AD40: =AVERAGE(#REF!) ->  | AE40: 0.052 | AF40: -0.082 | AG40: -0.484 | AH40: -1.782 | AI40: -2.214 | AJ40: 8.9 | AK40: -0.0175556 | AL40: -0.0088888 | AM40: -0.0086666
AC41: 0 | AD41: =AVERAGE(#REF!) ->  | AE41: -0.002 | AF41: -0.074 | AG41: -0.296 | AH41: -1.836 | AI41: -2.22 | AJ41: 9.09 | AK41: -0.0326666 | AL41: 0.0022222 | AM41: -0.0075554
AC42: 0 | AD42: =AVERAGE(#REF!) ->  | AE42: 0.036 | AF42: -0.056 | AG42: -0.014 | AH42: -1.806 | AI42: -2.206 | AJ42: 9.37 | AK42: 0.0013334 | AL42: 0.0497778 | AM42: -0.0097778
AC43: 0 | AD43: =AVERAGE(#REF!) ->  | AE43: -0.046 | AF43: -0.19 | AG43: 0.22 | AH43: -1.904 | AI43: -2.344 | AJ43: 9.602 | AK43: 0.0064444 | AL43: 0.0528888 | AM43: -0.0037778
AC44: 0 | AD44: =AVERAGE(#REF!) ->  | AE44: -0.186 | AF44: -0.158 | AG44: 0.24 | AH44: -2.054 | AI44: -2.304 | AJ44: 9.622 | AK44: 0.0191112 | AL44: 0.0319998 | AM44: 0.0064444
AC45: 0 | AD45: =AVERAGE(#REF!) ->  | AE45: -0.208 | AF45: 0.01 | AG45: 0.242 | AH45: -2.092 | AI45: -2.116 | AJ45: 9.624 | AK45: 0.0402224 | AL45: 0.0426666 | AM45: 0.0124444
AC46: 0 | AD46: =AVERAGE(#REF!) ->  | AE46: -0.064 | AF46: 0.052 | AG46: 0.196 | AH46: -1.96 | AI46: -2.05 | AJ46: 9.576 | AK46: 0.050889 | AL46: 0.0264444 | AM46: 0.0133332
AC47: 0 | AD47: =AVERAGE(#REF!) ->  | AE47: 0.032 | AF47: 0.04 | AG47: 0.224 | AH47: -1.872 | AI47: -2.04 | AJ47: 9.608 | AK47: 0.0411112 | AL47: 0.0015556 | AM47: 0.0133332
AC48: 0 | AD48: =AVERAGE(#REF!) ->  | AE48: 0.094 | AF48: 0.07 | AG48: 0.166 | AH48: -1.814 | AI48: -1.99 | AJ48: 9.552 | AK48: 0.0306668 | AL48: 0.0082224 | AM48: 0.0097776
AC49: 0 | AD49: =AVERAGE(#REF!) ->  | AE49: 0.02 | AF49: 0.06 | AG49: -0.028 | AH49: -1.896 | AI49: -1.994 | AJ49: 9.356 | AK49: 0.004 | AL49: -0.0064442 | AM49: 0.005111
AC50: 0 | AD50: =AVERAGE(#REF!) ->  | AE50: 0.092 | AF50: 0.02 | AG50: 0.018 | AH50: -1.824 | AI50: -2.034 | AJ50: 9.402 | AK50: -0.0082222 | AL50: -0.017111 | AM50: 0.0055556
AC51: 0 | AD51: =AVERAGE(#REF!) ->  | AE51: 0.02 | AF51: 0.004 | AG51: 0.042 | AH51: -1.898 | AI51: -2.054 | AJ51: 9.428 | AK51: -0.0111112 | AL51: -0.014222 | AM51: 0.0002222
AC52: 0 | AD52: =AVERAGE(#REF!) ->  | AE52: -0.032 | AF52: 0.004 | AG52: 0.032 | AH52: -1.95 | AI52: -2.062 | AJ52: 9.418 | AK52: -0.0215556 | AL52: -0.0173332 | AM52: 0.0002222
AC53: 0 | AD53: =AVERAGE(#REF!) ->  | AE53: -0.006 | AF53: -0.002 | AG53: 0.084 | AH53: -1.922 | AI53: -2.076 | AJ53: 9.472 | AK53: -0.0242222 | AL53: -0.0222222 | AM53: -0.0035556
AC54: 0 | AD54: =AVERAGE(#REF!) ->  | AE54: 0 | AF54: -0.048 | AG54: 0.162 | AH54: -1.916 | AI54: -2.134 | AJ54: 9.55 | AK54: -0.0208888 | AL54: -0.0097778 | AM54: -0.0044446
AC55: 0 | AD55: =AVERAGE(#REF!) ->  | AE55: -0.094 | AF55: 0.03 | AG55: 0.092 | AH55: -2.012 | AI55: -2.064 | AJ55: 9.476 | AK55: -0.0093334 | AL55: -0.01 | AM55: -0.005778
AC56: 0 | AD56: =AVERAGE(#REF!) ->  | AE56: 0.018 | AF56: 0.406 | AG56: 0.312 | AH56: -1.892 | AI56: -1.694 | AJ56: 9.694 | AK56: -0.0117778 | AL56: -0.0202224 | AM56: 0.0006666
AC57: 0 | AD57: =AVERAGE(#REF!) ->  | AE57: 0.01 | AF57: 0.576 | AG57: 0.248 | AH57: -1.896 | AI57: -1.538 | AJ57: 9.624 | AK57: -0.0106668 | AL57: -0.017778 | AM57: -0.0002222
AC58: 0 | AD58: =AVERAGE(#REF!) ->  | AE58: -0.2 | AF58: 0.566 | AG58: 0.246 | AH58: -2.11 | AI58: -1.564 | AJ58: 9.616 | AK58: -0.0093334 | AL58: -0.003778 | AM58: -0.002
AC59: 0 | AD59: =AVERAGE(#REF!) ->  | AE59: -0.226 | AF59: 0.62 | AG59: 0.11 | AH59: -2.13 | AI59: -1.522 | AJ59: 9.476 | AK59: -0.016 | AL59: -0.0204446 | AM59: -0.0042222
AC60: 0 | AD60: =AVERAGE(#REF!) ->  | AE60: -0.204 | AF60: 0.48 | AG60: 0.154 | AH60: -2.102 | AI60: -1.68 | AJ60: 9.522 | AK60: -0.0182222 | AL60: -0.0095556 | AM60: -0.0026666
AC61: 0 | AD61: =AVERAGE(#REF!) ->  | AE61: -0.288 | AF61: 0.05 | AG61: -0.022 | AH61: -2.188 | AI61: -2.124 | AJ61: 9.344 | AK61: -0.0073332 | AL61: 0.0037778 | AM61: -0.0035556
AC62: 0 | AD62: =AVERAGE(#REF!) ->  | AE62: -0.296 | AF62: -0.004 | AG62: 0.134 | AH62: -2.2 | AI62: -2.174 | AJ62: 9.504 | AK62: 0.0033336 | AL62: 0.0106668 | AM62: -0.0013334
AC63: 0 | AD63: =AVERAGE(#REF!) ->  | AE63: -0.21 | AF63: 0.056 | AG63: 0.146 | AH63: -2.114 | AI63: -2.106 | AJ63: 9.518 | AK63: 0.004889 | AL63: -0.0099998 | AM63: 0.0013332
AC64: 0 | AD64: =AVERAGE(#REF!) ->  | AE64: -0.128 | AF64: 0.042 | AG64: 0.296 | AH64: -2.034 | AI64: -2.114 | AJ64: 9.67 | AK64: 0.0102222 | AL64: 0.0080002 | AM64: 0.0002222
AC65: 0 | AD65: =AVERAGE(#REF!) ->  | AE65: -0.088 | AF65: 0.056 | AG65: 0.244 | AH65: -1.998 | AI65: -2.094 | AJ65: 9.614 | AK65: 0.008 | AL65: -0.0057776 | AM65: -0.0022224
AC66: =(1609.34/3600)*Delta_Speed -> 0 | AD66: =AVERAGE(#REF!) ->  | AE66: -0.164 | AF66: 0.104 | AG66: 0.198 | AH66: -2.082 | AI66: -2.036 | AJ66: 9.568 | AK66: 0.0102222 | AL66: -0.0037776 | AM66: -0.0006668
AC67: 0 | AD67: =AVERAGE(#REF!) ->  | AE67: -0.058 | AF67: 0.148 | AG67: 0.154 | AH67: -1.974 | AI67: -1.986 | AJ67: 9.524 | AK67: 0.0026666 | AL67: -0.0166666 | AM67: -0.000889
AC68: 0 | AD68: =AVERAGE(#REF!) ->  | AE68: -0.02 | AF68: 0.092 | AG68: 0.194 | AH68: -1.942 | AI68: -2.04 | AJ68: 9.564 | AK68: -0.0133334 | AL68: 0.0031112 | AM68: 0.0024444
AC69: 0 | AD69: =AVERAGE(#REF!) ->  | AE69: -0.15 | AF69: 0.118 | AG69: 0.29 | AH69: -2.086 | AI69: -2.012 | AJ69: 9.658 | AK69: -0.008889 | AL69: 0.0091112 | AM69: 0.006
AC70: 0 | AD70: =AVERAGE(#REF!) ->  | AE70: =AVERAGE(Q66:Q70) -> -0.256 | AF70: =AVERAGE(R66:R70) -> 0.078 | AG70: =AVERAGE(S66:S70) -> 0.22 | AH70: =AVERAGE(T66:T70) -> -2.206 | AI70: =AVERAGE(U66:U70) -> -2.048 | AJ70: =AVERAGE(V66:V70) -> 9.586 | AK70: =AVERAGE(W66:W70) -> -0.0124446 | AL70: =AVERAGE(X66:X70) -> 0.0244444 | AM70: =AVERAGE(Y66:Y70) -> 0.0046668
AC71: 0 | AD71: =AVERAGE(#REF!) ->  | AE71: -0.232 | AF71: 0.052 | AG71: 0.228 | AH71: -2.196 | AI71: -2.078 | AJ71: 9.592 | AK71: -0.0222224 | AL71: 0.023111 | AM71: 0.0006668
AC72: 0 | AD72: =AVERAGE(#REF!) ->  | AE72: -0.382 | AF72: -0.072 | AG72: 0.248 | AH72: -2.364 | AI72: -2.206 | AJ72: 9.608 | AK72: -0.0164446 | AL72: 0.0337778 | AM72: 0.0011112
AC73: 0 | AD73: =AVERAGE(#REF!) ->  | AE73: -0.48 | AF73: 0.012 | AG73: 0.182 | AH73: -2.47 | AI73: -2.122 | AJ73: 9.54 | AK73: 0.0002222 | AL73: 0.0228888 | AM73: -0.0008888
AC74: 0 | AD74: =AVERAGE(#REF!) ->  | AE74: -0.436 | AF74: 0.002 | AG74: -0.036 | AH74: -2.43 | AI74: -2.13 | AJ74: 9.32 | AK74: -0.0104444 | AL74: 0.0084442 | AM74: -0.002
AC75: 0 | AD75: =AVERAGE(#REF!) ->  | AE75: -0.356 | AF75: 0.026 | AG75: 0.016 | AH75: -2.35 | AI75: -2.108 | AJ75: 9.372 | AK75: -0.0062222 | AL75: 0.0046666 | AM75: 0.0002222
AC76: 0 | AD76: =AVERAGE(#REF!) ->  | AE76: -0.266 | AF76: 0.052 | AG76: 0.002 | AH76: -2.256 | AI76: -2.078 | AJ76: 9.358 | AK76: -0.0062222 | AL76: 0.0062222 | AM76: 0.0004444
AC77: 0 | AD77: =AVERAGE(#REF!) ->  | AE77: -0.184 | AF77: 0.028 | AG77: 0 | AH77: -2.174 | AI77: -2.102 | AJ77: 9.356 | AK77: -0.0075556 | AL77: 0.005111 | AM77: -0.0006666
AC78: 0 | AD78: =AVERAGE(#REF!) ->  | AE78: -0.276 | AF78: -0.004 | AG78: -0.088 | AH78: -2.268 | AI78: -2.134 | AJ78: 9.264 | AK78: -0.0080002 | AL78: -0.002 | AM78: -0.001111
AC79: 0 | AD79: =AVERAGE(#REF!) ->  | AE79: -0.33 | AF79: -0.058 | AG79: 0.082 | AH79: -2.324 | AI79: -2.194 | AJ79: 9.436 | AK79: -0.0062224 | AL79: 0.0026668 | AM79: -0.001111
AC80: 0 | AD80: =AVERAGE(#REF!) ->  | AE80: -0.258 | AF80: -0.008 | AG80: 0.148 | AH80: -2.254 | AI80: -2.142 | AJ80: 9.502 | AK80: -0.0057778 | AL80: -0.006 | AM80: 0.0002224
AC81: 0 | AD81: =AVERAGE(#REF!) ->  | AE81: -0.416 | AF81: 0.064 | AG81: 0.208 | AH81: -2.414 | AI81: -2.074 | AJ81: 9.562 | AK81: -0.006889 | AL81: -0.0202222 | AM81: 0.0026668
AC82: 0 | AD82: =AVERAGE(#REF!) ->  | AE82: -0.496 | AF82: 0.128 | AG82: 0.046 | AH82: -2.49 | AI82: -2.01 | AJ82: 9.4 | AK82: -0.0035556 | AL82: -0.0166666 | AM82: 0.0042222
AC83: 0 | AD83: =AVERAGE(#REF!) ->  | AE83: -0.012 | AF83: 0.244 | AG83: 0.364 | AH83: -2 | AI83: -1.898 | AJ83: 9.722 | AK83: -0.0024444 | AL83: -0.0013334 | AM83: 0.0006666
AC84: 0 | AD84: =AVERAGE(#REF!) ->  | AE84: -0.016 | AF84: 0.26 | AG84: 0.188 | AH84: -1.998 | AI84: -1.886 | AJ84: 9.544 | AK84: -0.0046666 | AL84: -0.0040002 | AM84: 0.0015554
AC85: 0 | AD85: =AVERAGE(#REF!) ->  | AE85: -0.186 | AF85: 0.312 | AG85: 0.156 | AH85: -2.166 | AI85: -1.84 | AJ85: 9.514 | AK85: -0.0024444 | AL85: 0.0184442 | AM85: 0.0015554
AC86: 0 | AD86: =AVERAGE(#REF!) ->  | AE86: -0.124 | AF86: 0.26 | AG86: 0.082 | AH86: -2.104 | AI86: -1.896 | AJ86: 9.438 | AK86: 0.0022224 | AL86: 0.0273332 | AM86: 0.0002222
AC87: 0 | AD87: =AVERAGE(#REF!) ->  | AE87: 0.044 | AF87: 0.208 | AG87: 0.24 | AH87: -1.936 | AI87: -1.954 | AJ87: 9.594 | AK87: -0.0006666 | AL87: 0.0253332 | AM87: -0.001111
AC88: 0 | AD88: =AVERAGE(#REF!) ->  | AE88: -0.254 | AF88: 0.054 | AG88: -0.016 | AH88: -2.238 | AI88: -2.112 | AJ88: 9.336 | AK88: -0.0017778 | AL88: 0.012 | AM88: 0.001778
AC89: 0 | AD89: =AVERAGE(#REF!) ->  | AE89: -0.198 | AF89: 0.098 | AG89: 0.004 | AH89: -2.184 | AI89: -2.066 | AJ89: 9.354 | AK89: -0.0013334 | AL89: 0.0115556 | AM89: 0.000667
AC90: 0 | AD90: =AVERAGE(#REF!) ->  | AE90: -0.086 | AF90: -0.012 | AG90: 0.022 | AH90: -2.07 | AI90: -2.178 | AJ90: 9.37 | AK90: -0.0031112 | AL90: -0.0057776 | AM90: 0.0002224
AC91: 0 | AD91: =AVERAGE(#REF!) ->  | AE91: -0.038 | AF91: -0.02 | AG91: 0.022 | AH91: -2.018 | AI91: -2.186 | AJ91: 9.368 | AK91: -0.0040002 | AL91: -0.0026666 | AM91: -0.0002222
AC92: 0 | AD92: =AVERAGE(#REF!) ->  | AE92: -0.168 | AF92: 0.024 | AG92: -0.028 | AH92: -2.152 | AI92: -2.14 | AJ92: 9.318 | AK92: -0.0042224 | AL92: -0.0046666 | AM92: 0.001111
AC93: 0 | AD93: =AVERAGE(#REF!) ->  | AE93: -0.17 | AF93: 0.07 | AG93: 0.024 | AH93: -2.154 | AI93: -2.09 | AJ93: 9.37 | AK93: -0.0051112 | AL93: -0.0084444 | AM93: 0.002222
AC94: 0 | AD94: =AVERAGE(#REF!) ->  | AE94: -0.172 | AF94: 0.026 | AG94: 0.088 | AH94: -2.156 | AI94: -2.134 | AJ94: 9.436 | AK94: -0.0051112 | AL94: -0.0102222 | AM94: 0.003333
AC95: 0 | AD95: =AVERAGE(#REF!) ->  | AE95: -0.158 | AF95: 0.046 | AG95: 0.068 | AH95: -2.144 | AI95: -2.112 | AJ95: 9.416 | AK95: -0.0053334 | AL95: -0.0075556 | AM95: 0.003333
AC96: 0 | AD96: =AVERAGE(#REF!) ->  | AE96: -0.184 | AF96: 0.03 | AG96: 0.1 | AH96: -2.176 | AI96: -2.126 | AJ96: 9.45 | AK96: -0.0055556 | AL96: -0.008 | AM96: 0.003333
AC97: 0 | AD97: =AVERAGE(#REF!) ->  | AE97: -0.16 | AF97: 0.01 | AG97: 0.102 | AH97: -2.154 | AI97: -2.146 | AJ97: 9.454 | AK97: -0.0042222 | AL97: -0.0075556 | AM97: 0.002222
AC98: 0 | AD98: =AVERAGE(#REF!) ->  | AE98: -0.202 | AF98: 0.036 | AG98: 0.056 | AH98: -2.198 | AI98: -2.12 | AJ98: 9.408 | AK98: 0.0006666 | AL98: 0.005111 | AM98: 0.0026664
AC99: 0 | AD99: =AVERAGE(#REF!) ->  | AE99: -0.19 | AF99: 0.04 | AG99: 0.056 | AH99: -2.19 | AI99: -2.112 | AJ99: 9.408 | AK99: 0.0044444 | AL99: 0.0095556 | AM99: 0.0006664
AC100: 0 | AD100: =AVERAGE(#REF!) ->  | AE100: -0.144 | AF100: 0.05 | AG100: 0.064 | AH100: -2.148 | AI100: -2.098 | AJ100: 9.416 | AK100: 0.0028888 | AL100: 0.006889 | AM100: -0.0004446
AC101: 0 | AD101: =AVERAGE(#REF!) ->  | AE101: -0.088 | AF101: 0.014 | AG101: 0.11 | AH101: -2.096 | AI101: -2.136 | AJ101: 9.462 | AK101: -0.002889 | AL101: 0.0077778 | AM101: -0.0013334
AC102: 0 | AD102: =AVERAGE(#REF!) ->  | AE102: -0.132 | AF102: 0.034 | AG102: 0.072 | AH102: -2.146 | AI102: -2.116 | AJ102: 9.418 | AK102: -0.005778 | AL102: 0.0057778 | AM102: -0.0015556
AC103: 0 | AD103: =AVERAGE(#REF!) ->  | AE103: -0.11 | AF103: -0.02 | AG103: 0.08 | AH103: -2.128 | AI103: -2.176 | AJ103: 9.426 | AK103: -0.0084446 | AL103: -0.0013332 | AM103: -0.004
AC104: 0 | AD104: =AVERAGE(#REF!) ->  | AE104: -0.132 | AF104: -0.032 | AG104: 0.096 | AH104: -2.152 | AI104: -2.194 | AJ104: 9.442 | AK104: -0.0124446 | AL104: -0.0117778 | AM104: 0.0006668
AC105: 0 | AD105: =AVERAGE(#REF!) ->  | AE105: -0.13 | AF105: -0.12 | AG105: 0.054 | AH105: -2.146 | AI105: -2.288 | AJ105: 9.398 | AK105: -0.0120002 | AL105: -0.014889 | AM105: 0.002889
AC106: 0 | AD106: =AVERAGE(#REF!) ->  | AE106: -0.16 | AF106: -0.08 | AG106: 0.03 | AH106: -2.168 | AI106: -2.25 | AJ106: 9.374 | AK106: -0.0120002 | AL106: -0.024 | AM106: 0.0037778
AC107: 0 | AD107: =AVERAGE(#REF!) ->  | AE107: -0.15 | AF107: -0.096 | AG107: 0.052 | AH107: -2.152 | AI107: -2.27 | AJ107: 9.4 | AK107: -0.0104446 | AL107: -0.024 | AM107: 0.005111
AC108: 0 | AD108: =AVERAGE(#REF!) ->  | AE108: -0.1 | AF108: -0.098 | AG108: 0.07 | AH108: -2.096 | AI108: -2.272 | AJ108: 9.418 | AK108: -0.0120002 | AL108: -0.028889 | AM108: 0.007111
AC109: 0 | AD109: =AVERAGE(#REF!) ->  | AE109: -0.062 | AF109: -0.096 | AG109: 0.06 | AH109: -2.05 | AI109: -2.272 | AJ109: 9.408 | AK109: -0.0093336 | AL109: -0.018889 | AM109: 0.0048888
AC110: 0 | AD110: =AVERAGE(#REF!) ->  | AE110: -0.08 | AF110: -0.012 | AG110: 0.136 | AH110: -2.068 | AI110: -2.186 | AJ110: 9.488 | AK110: -0.0102224 | AL110: -0.0182222 | AM110: 0.0039998
AC111: 0 | AD111: =AVERAGE(#REF!) ->  | AE111: -0.096 | AF111: -0.022 | AG111: 0.106 | AH111: -2.086 | AI111: -2.196 | AJ111: 9.458 | AK111: -0.0051112 | AL111: -0.0104444 | AM111: 0.0033332
AC112: 0 | AD112: =AVERAGE(#REF!) ->  | AE112: -0.086 | AF112: -0.024 | AG112: 0.116 | AH112: -2.074 | AI112: -2.198 | AJ112: 9.47 | AK112: -0.0037778 | AL112: -0.008 | AM112: 0.0026666
AC113: 0 | AD113: =AVERAGE(#REF!) ->  | AE113: -0.046 | AF113: -0.012 | AG113: 0.12 | AH113: -2.032 | AI113: -2.186 | AJ113: 9.474 | AK113: -0.004 | AL113: -0.0042222 | AM113: 0.0026666
AC114: 0 | AD114: =AVERAGE(#REF!) ->  | AE114: -0.038 | AF114: -0.008 | AG114: 0.132 | AH114: -2.028 | AI114: -2.18 | AJ114: 9.486 | AK114: -0.0048888 | AL114: -0.0048888 | AM114: 0.0017776
AC115: 0 | AD115: =AVERAGE(#REF!) ->  | AE115: -0.046 | AF115: -0.002 | AG115: 0.108 | AH115: -2.038 | AI115: -2.176 | AJ115: 9.46 | AK115: -0.0033332 | AL115: 0.0004444 | AM115: 0.0004444
AC116: 0 | AD116: =AVERAGE(#REF!) ->  | AE116: -0.076 | AF116: -0.01 | AG116: 0.106 | AH116: -2.07 | AI116: -2.184 | AJ116: 9.458 | AK116: -0.0046666 | AL116: 0.0015554 | AM116: -0.0002222
AC117: 0 | AD117: =AVERAGE(#REF!) ->  | AE117: -0.066 | AF117: -0.012 | AG117: 0.094 | AH117: -2.062 | AI117: -2.184 | AJ117: 9.444 | AK117: -0.006 | AL117: 0.0004444 | AM117: -0.0002222
AC118: 0 | AD118: =AVERAGE(#REF!) ->  | AE118: -0.124 | AF118: -0.024 | AG118: 0.07 | AH118: -2.124 | AI118: -2.196 | AJ118: 9.42 | AK118: -0.006 | AL118: -0.0006666 | AM118: 0
AC119: 0 | AD119: =AVERAGE(#REF!) ->  | AE119: -0.136 | AF119: -0.022 | AG119: 0.066 | AH119: -2.136 | AI119: -2.196 | AJ119: 9.416 | AK119: -0.0057778 | AL119: -0.0002222 | AM119: -0.0004444
AC120: 0 | AD120: =AVERAGE(#REF!) ->  | AE120: -0.166 | AF120: -0.03 | AG120: 0.056 | AH120: -2.168 | AI120: -2.206 | AJ120: 9.404 | AK120: -0.0064446 | AL120: 0.0006668 | AM120: 0.0002222
AC121: 0 | AD121: =AVERAGE(#REF!) ->  | AE121: -0.138 | AF121: -0.024 | AG121: 0.07 | AH121: -2.142 | AI121: -2.2 | AJ121: 9.418 | AK121: -0.0071112 | AL121: -0.001111 | AM121: 0.0013332
AC122: 0 | AD122: =AVERAGE(#REF!) ->  | AE122: -0.146 | AF122: -0.02 | AG122: 0.072 | AH122: -2.152 | AI122: -2.2 | AJ122: 9.42 | AK122: -0.0082222 | AL122: -0.0024444 | AM122: 0.0013332
AC123: 0 | AD123: =AVERAGE(#REF!) ->  | AE123: -0.118 | AF123: 0.022 | AG123: 0.108 | AH123: -2.126 | AI123: -2.156 | AJ123: 9.454 | AK123: -0.01 | AL123: -0.0017778 | AM123: 0.0008888
AC124: 0 | AD124: =AVERAGE(#REF!) ->  | AE124: -0.12 | AF124: 0.014 | AG124: 0.098 | AH124: -2.13 | AI124: -2.166 | AJ124: 9.442 | AK124: -0.0117778 | AL124: -0.0024444 | AM124: 0.0013332
AC125: 0 | AD125: =AVERAGE(#REF!) ->  | AE125: -0.094 | AF125: 0.016 | AG125: 0.108 | AH125: -2.104 | AI125: -2.166 | AJ125: 9.452 | AK125: -0.0113334 | AL125: -0.0035556 | AM125: 0.0013332
AC126: 0 | AD126: =AVERAGE(#REF!) ->  | AE126: -0.108 | AF126: 0.008 | AG126: 0.112 | AH126: -2.118 | AI126: -2.178 | AJ126: 9.454 | AK126: -0.0115556 | AL126: -0.0013334 | AM126: 0.0008888
AC127: 0 | AD127: =AVERAGE(#REF!) ->  | AE127: -0.098 | AF127: 0.002 | AG127: 0.116 | AH127: -2.108 | AI127: -2.184 | AJ127: 9.458 | AK127: -0.0104446 | AL127: 0.0006666 | AM127: 0.0017778
AC128: 0 | AD128: =AVERAGE(#REF!) ->  | AE128: -0.122 | AF128: -0.04 | AG128: 0.102 | AH128: -2.132 | AI128: -2.23 | AJ128: 9.446 | AK128: -0.0077778 | AL128: 0.0008888 | AM128: 0.0015556
AC129: 0 | AD129: =AVERAGE(#REF!) ->  | AE129: -0.114 | AF129: -0.018 | AG129: 0.118 | AH129: -2.124 | AI129: -2.208 | AJ129: 9.462 | AK129: -0.0075556 | AL129: 0.0002222 | AM129: 0.0015556
AC130: =(1609.34/3600)*Delta_Speed -> 0 | AD130: =AVERAGE(#REF!) ->  | AE130: -0.122 | AF130: -0.022 | AG130: 0.116 | AH130: -2.132 | AI130: -2.212 | AJ130: 9.462 | AK130: -0.0073332 | AL130: -0.0008888 | AM130: 0.0015556
AC131: 0 | AD131: =AVERAGE(#REF!) ->  | AE131: -0.118 | AF131: -0.02 | AG131: 0.104 | AH131: -2.128 | AI131: -2.212 | AJ131: 9.452 | AK131: -0.0048888 | AL131: -0.0015554 | AM131: 0.0026668
AC132: 0 | AD132: =AVERAGE(#REF!) ->  | AE132: -0.126 | AF132: -0.016 | AG132: 0.102 | AH132: -2.136 | AI132: -2.208 | AJ132: 9.45 | AK132: -0.004222 | AL132: -0.0024442 | AM132: 0.0017778
AC133: 0 | AD133: =AVERAGE(#REF!) ->  | AE133: -0.128 | AF133: -0.004 | AG133: 0.1 | AH133: -2.138 | AI133: -2.198 | AJ133: 9.446 | AK133: -0.0039998 | AL133: -0.0024442 | AM133: 0.0022222
AC134: 0 | AD134: =AVERAGE(#REF!) ->  | AE134: =AVERAGE(Q130:Q134) -> -0.128 | AF134: =AVERAGE(R130:R134) -> -0.026 | AG134: =AVERAGE(S130:S134) -> 0.088 | AH134: =AVERAGE(T130:T134) -> -2.138 | AI134: =AVERAGE(U130:U134) -> -2.22 | AJ134: =AVERAGE(V130:V134) -> 9.434 | AK134: =AVERAGE(W130:W134) -> -0.0035554 | AL134: =AVERAGE(X130:X134) -> -0.0015554 | AM134: =AVERAGE(Y130:Y134) -> 0.002
AC135: 0 | AD135: =AVERAGE(#REF!) ->  | AE135: -0.15 | AF135: -0.02 | AG135: 0.086 | AH135: -2.16 | AI135: -2.214 | AJ135: 9.43 | AK135: -0.0033332 | AL135: 0.0004446 | AM135: 0.0026666
AC136: 0 | AD136: =AVERAGE(#REF!) ->  | AE136: -0.174 | AF136: -0.012 | AG136: 0.094 | AH136: -2.182 | AI136: -2.202 | AJ136: 9.438 | AK136: -0.0013332 | AL136: 0.0046668 | AM136: 0.0008888
AC137: 0 | AD137: =AVERAGE(#REF!) ->  | AE137: -0.258 | AF137: 0.024 | AG137: 0.076 | AH137: -2.268 | AI137: -2.164 | AJ137: 9.416 | AK137: -0.003111 | AL137: 0.0064444 | AM137: 0.0013332
AC138: 0 | AD138: =AVERAGE(#REF!) ->  | AE138: -0.23 | AF138: 0.01 | AG138: 0.072 | AH138: -2.238 | AI138: -2.176 | AJ138: 9.412 | AK138: -0.0024444 | AL138: 0.0042222 | AM138: 0.0008888
AC139: 0 | AD139: =AVERAGE(#REF!) ->  | AE139: -0.228 | AF139: 0.012 | AG139: 0.082 | AH139: -2.236 | AI139: -2.176 | AJ139: 9.424 | AK139: 0.0006668 | AL139: 0.0053334 | AM139: 0.001111
AC140: 0 | AD140: =AVERAGE(#REF!) ->  | AE140: -0.2 | AF140: 0.004 | AG140: 0.088 | AH140: -2.208 | AI140: -2.186 | AJ140: 9.43 | AK140: 0.0006668 | AL140: 0.0013334 | AM140: 0.0002222
AC141: 0 | AD141: =AVERAGE(#REF!) ->  | AE141: -0.174 | AF141: -0.008 | AG141: 0.074 | AH141: -2.184 | AI141: -2.2 | AJ141: 9.414 | AK141: -0.0008888 | AL141: -0.0037776 | AM141: 0.0013332
AC142: 0 | AD142: =AVERAGE(#REF!) ->  | AE142: -0.084 | AF142: -0.046 | AG142: 0.098 | AH142: -2.092 | AI142: -2.24 | AJ142: 9.442 | AK142: 0.0017778 | AL142: -0.0057776 | AM142: 0.0017778
AC143: 0 | AD143: =AVERAGE(#REF!) ->  | AE143: -0.11 | AF143: -0.032 | AG143: 0.098 | AH143: -2.12 | AI143: -2.226 | AJ143: 9.444 | AK143: 0.0006668 | AL143: -0.005111 | AM143: 0.0028888
AC144: 0 | AD144: =AVERAGE(#REF!) ->  | AE144: -0.11 | AF144: -0.028 | AG144: 0.094 | AH144: -2.12 | AI144: -2.22 | AJ144: 9.44 | AK144: -0.0015554 | AL144: -0.006 | AM144: 0.0033332
AC145: 0 | AD145: =AVERAGE(#REF!) ->  | AE145: -0.114 | AF145: -0.024 | AG145: 0.084 | AH145: -2.124 | AI145: -2.214 | AJ145: 9.43 | AK145: -0.0022222 | AL145: -0.0055556 | AM145: 0.0039998
AC146: 0 | AD146: =AVERAGE(#REF!) ->  | AE146: -0.108 | AF146: -0.02 | AG146: 0.096 | AH146: -2.118 | AI146: -2.208 | AJ146: 9.442 | AK146: -0.0033332 | AL146: -0.004889 | AM146: 0.004222
AC147: 0 | AD147: =AVERAGE(#REF!) ->  | AE147: -0.116 | AF147: -0.024 | AG147: 0.092 | AH147: -2.126 | AI147: -2.212 | AJ147: 9.436 | AK147: -0.0048888 | AL147: -0.0062222 | AM147: 0.0039996
AC148: 0 | AD148: =AVERAGE(#REF!) ->  | AE148: -0.114 | AF148: -0.026 | AG148: 0.096 | AH148: -2.122 | AI148: -2.214 | AJ148: 9.438 | AK148: -0.0055556 | AL148: -0.0066666 | AM148: 0.003333
AC149: 0 | AD149: =AVERAGE(#REF!) ->  | AE149: -0.124 | AF149: -0.03 | AG149: 0.084 | AH149: -2.13 | AI149: -2.218 | AJ149: 9.424 | AK149: -0.0057778 | AL149: -0.0075554 | AM149: 0.0031108
AC150: 0 | AD150: =AVERAGE(#REF!) ->  | AE150: -0.114 | AF150: -0.028 | AG150: 0.088 | AH150: -2.12 | AI150: -2.216 | AJ150: 9.428 | AK150: -0.0053332 | AL150: -0.0064444 | AM150: 0.003333
AC151: 0 | AD151: =AVERAGE(#REF!) ->  | AE151: -0.118 | AF151: -0.036 | AG151: 0.092 | AH151: -2.124 | AI151: -2.228 | AJ151: 9.434 | AK151: -0.0048888 | AL151: -0.0068888 | AM151: 0.0028886
AC152: 0 | AD152: =AVERAGE(#REF!) ->  | AE152: -0.116 | AF152: -0.026 | AG152: 0.094 | AH152: -2.122 | AI152: -2.218 | AJ152: 9.436 | AK152: -0.0039998 | AL152: -0.0053332 | AM152: 0.0024442
AC153: 0 | AD153: =AVERAGE(#REF!) ->  | AE153: -0.112 | AF153: -0.018 | AG153: 0.092 | AH153: -2.12 | AI153: -2.208 | AJ153: 9.436 | AK153: -0.0035554 | AL153: -0.0044444 | AM153: 0.0026664
AC154: 0 | AD154: =AVERAGE(#REF!) ->  | AE154: -0.106 | AF154: -0.012 | AG154: 0.112 | AH154: -2.116 | AI154: -2.202 | AJ154: 9.456 | AK154: -0.0006666 | AL154: -0.0075556 | AM154: 0.0015554
AC155: 0 | AD155: =AVERAGE(#REF!) ->  | AE155: -0.09 | AF155: -0.04 | AG155: 0.12 | AH155: -2.096 | AI155: -2.228 | AJ155: 9.466 | AK155: 0.0037778 | AL155: -0.0126666 | AM155: 0.001111
AC156: 0 | AD156: =AVERAGE(#REF!) ->  | AE156: -0.144 | AF156: -0.024 | AG156: 0.118 | AH156: -2.146 | AI156: -2.206 | AJ156: 9.466 | AK156: 0.0053334 | AL156: -0.0095556 | AM156: -0.0002224
AC157: 0 | AD157: =AVERAGE(#REF!) ->  | AE157: -0.146 | AF157: -0.03 | AG157: 0.114 | AH157: -2.146 | AI157: -2.21 | AJ157: 9.464 | AK157: 0.0075556 | AL157: -0.0053334 | AM157: -0.001778
AC158: 0 | AD158: =AVERAGE(#REF!) ->  | AE158: -0.176 | AF158: -0.066 | AG158: 0.096 | AH158: -2.176 | AI158: -2.246 | AJ158: 9.444 | AK158: 0.0113334 | AL158: -0.0008888 | AM158: -0.0002224
AC159: 0 | AD159: =AVERAGE(#REF!) ->  | AE159: -0.152 | AF159: -0.052 | AG159: 0.056 | AH159: -2.15 | AI159: -2.226 | AJ159: 9.402 | AK159: 0.0086668 | AL159: 0.0004446 | AM159: 0.000222
AC160: 0 | AD160: =AVERAGE(#REF!) ->  | AE160: -0.184 | AF160: -0.006 | AG160: 0.056 | AH160: -2.186 | AI160: -2.176 | AJ160: 9.402 | AK160: 0.0044446 | AL160: 0.008889 | AM160: -0.0006668
AC161: 0 | AD161: =AVERAGE(#REF!) ->  | AE161: -0.134 | AF161: -0.01 | AG161: 0.12 | AH161: -2.14 | AI161: -2.18 | AJ161: 9.464 | AK161: 0.0026668 | AL161: 0.0073336 | AM161: 0.0017778
AC162: 0 | AD162: =AVERAGE(#REF!) ->  | AE162: -0.104 | AF162: -0.032 | AG162: 0.088 | AH162: -2.112 | AI162: -2.202 | AJ162: 9.43 | AK162: 0.0011112 | AL162: 0.0026668 | AM162: 0.0026668
AC163: 0 | AD163: =AVERAGE(#REF!) ->  | AE163: -0.07 | AF163: -0.008 | AG163: 0.152 | AH163: -2.078 | AI163: -2.176 | AJ163: 9.496 | AK163: -0.0028888 | AL163: -0.001111 | AM163: 0.0013334
AC164: 0 | AD164: =AVERAGE(#REF!) ->  | AE164: -0.098 | AF164: -0.014 | AG164: 0.168 | AH164: -2.11 | AI164: -2.184 | AJ164: 9.516 | AK164: -0.0017778 | AL164: 0.0013334 | AM164: 0.000889
AC165: 0 | AD165: =AVERAGE(#REF!) ->  | AE165: -0.07 | AF165: -0.108 | AG165: 0.066 | AH165: -2.082 | AI165: -2.28 | AJ165: 9.412 | AK165: -0.002 | AL165: -0.0004444 | AM165: 0.0015556
AC166: 0 | AD166: =AVERAGE(#REF!) ->  | AE166: -0.092 | AF166: -0.148 | AG166: 0.008 | AH166: -2.104 | AI166: -2.32 | AJ166: 9.352 | AK166: -0.0015556 | AL166: -0.0002222 | AM166: 0.0006666
AC167: 0 | AD167: =AVERAGE(#REF!) ->  | AE167: -0.068 | AF167: -0.122 | AG167: 0.036 | AH167: -2.08 | AI167: -2.292 | AJ167: 9.382 | AK167: -0.0022222 | AL167: 0.0024446 | AM167: 0.0026666
AC168: 0 | AD168: =AVERAGE(#REF!) ->  | AE168: -0.038 | AF168: -0.11 | AG168: -0.138 | AH168: -2.05 | AI168: -2.28 | AJ168: 9.206 | AK168: -0.0033332 | AL168: -0.003111 | AM168: 0.0017778
AC169: 0 | AD169: =AVERAGE(#REF!) ->  | AE169: -0.056 | AF169: -0.106 | AG169: -0.13 | AH169: -2.07 | AI169: -2.274 | AJ169: 9.214 | AK169: -0.0066664 | AL169: -0.0064444 | AM169: 0.0024444
AC170: 0 | AD170: =AVERAGE(#REF!) ->  | AE170: -0.102 | AF170: -0.03 | AG170: -0.01 | AH170: -2.12 | AI170: -2.196 | AJ170: 9.334 | AK170: -0.0028888 | AL170: -0.002 | AM170: 0.0028888
AC171: 0 | AD171: =AVERAGE(#REF!) ->  | AE171: -0.14 | AF171: 0.106 | AG171: 0.002 | AH171: -2.164 | AI171: -2.056 | AJ171: 9.346 | AK171: -0.0042222 | AL171: -0.0017778 | AM171: 0.0024444
AC172: 0 | AD172: =AVERAGE(#REF!) ->  | AE172: -0.37 | AF172: 0.144 | AG172: -0.09 | AH172: -2.4 | AI172: -2.014 | AJ172: 9.25 | AK172: -0.0044444 | AL172: -0.004889 | AM172: 0.0002222
AC173: 0 | AD173: =AVERAGE(#REF!) ->  | AE173: -0.458 | AF173: 0.196 | AG173: 0.026 | AH173: -2.49 | AI173: -1.96 | AJ173: 9.368 | AK173: -0.0028888 | AL173: -0.0035556 | AM173: 0.001111
AC174: 0 | AD174: =AVERAGE(#REF!) ->  | AE174: -0.306 | AF174: 0.286 | AG174: -0.034 | AH174: -2.332 | AI174: -1.87 | AJ174: 9.306 | AK174: -0.0022222 | AL174: -0.005111 | AM174: 0.0006666
AC175: 0 | AD175: =AVERAGE(#REF!) ->  | AE175: -0.28 | AF175: 0.386 | AG175: -0.512 | AH175: -2.304 | AI175: -1.77 | AJ175: 8.828 | AK175: -0.0057776 | AL175: -0.0133332 | AM175: 0.0002222
AC176: 0 | AD176: =AVERAGE(#REF!) ->  | AE176: -0.18 | AF176: 0.316 | AG176: -0.592 | AH176: -2.2 | AI176: -1.844 | AJ176: 8.748 | AK176: -0.0071108 | AL176: -0.0084444 | AM176: 0.0002222
AC177: 0 | AD177: =AVERAGE(#REF!) ->  | AE177: 0 | AF177: 0.33 | AG177: -0.53 | AH177: -2.018 | AI177: -1.832 | AJ177: 8.812 | AK177: -0.0077776 | AL177: -0.0066666 | AM177: 0.0004444
AC178: 0 | AD178: =AVERAGE(#REF!) ->  | AE178: 0.002 | AF178: 0.276 | AG178: -0.526 | AH178: -2.018 | AI178: -1.89 | AJ178: 8.814 | AK178: -0.0064444 | AL178: 0.0051112 | AM178: -0.0008888
AC179: 0 | AD179: =AVERAGE(#REF!) ->  | AE179: -0.144 | AF179: 0.192 | AG179: -0.476 | AH179: -2.174 | AI179: -1.974 | AJ179: 8.864 | AK179: -0.0037778 | AL179: 0.0186666 | AM179: -0.0022222
AC180: 0 | AD180: =AVERAGE(#REF!) ->  | AE180: -0.19 | AF180: 0.092 | AG180: -0.02 | AH180: -2.228 | AI180: -2.074 | AJ180: 9.32 | AK180: 0.0024444 | AL180: 0.0266666 | AM180: -0.0044444
AC181: 0 | AD181: =AVERAGE(#REF!) ->  | AE181: -0.262 | AF181: 0.046 | AG181: 0.01 | AH181: -2.308 | AI181: -2.118 | AJ181: 9.348 | AK181: 0.010222 | AL181: 0.0186666 | AM181: -0.0053332
AC182: 0 | AD182: =AVERAGE(#REF!) ->  | AE182: -0.232 | AF182: 0.004 | AG182: 0.038 | AH182: -2.282 | AI182: -2.158 | AJ182: 9.376 | AK182: 0.011111 | AL182: 0.0182222 | AM182: -0.0059998
AC183: 0 | AD183: =AVERAGE(#REF!) ->  | AE183: -0.25 | AF183: -0.042 | AG183: 0.06 | AH183: -2.306 | AI183: -2.198 | AJ183: 9.398 | AK183: 0.008 | AL183: 0.0097776 | AM183: -0.004222
AC184: 0 | AD184: =AVERAGE(#REF!) ->  | AE184: -0.114 | AF184: -0.11 | AG184: 0.134 | AH184: -2.17 | AI184: -2.266 | AJ184: 9.472 | AK184: 0.0051112 | AL184: -0.0006668 | AM184: -0.0028886
AC185: 0 | AD185: =AVERAGE(#REF!) ->  | AE185: -0.082 | AF185: -0.162 | AG185: 0.108 | AH185: -2.138 | AI185: -2.318 | AJ185: 9.444 | AK185: -0.003111 | AL185: -0.0053334 | AM185: -0.0011108
AC186: 0 | AD186: =AVERAGE(#REF!) ->  | AE186: -0.022 | AF186: -0.118 | AG186: 0.13 | AH186: -2.076 | AI186: -2.27 | AJ186: 9.468 | AK186: -0.005111 | AL186: -0.0013334 | AM186: 0.0015558
AC187: 0 | AD187: =AVERAGE(#REF!) ->  | AE187: -0.042 | AF187: -0.106 | AG187: 0.122 | AH187: -2.098 | AI187: -2.258 | AJ187: 9.462 | AK187: -0.0073332 | AL187: -0.002889 | AM187: 0.0020002
AC188: 0 | AD188: =AVERAGE(#REF!) ->  | AE188: 0.062 | AF188: -0.002 | AG188: 0.132 | AH188: -1.994 | AI188: -2.154 | AJ188: 9.472 | AK188: -0.0033332 | AL188: 0.003111 | AM188: 0.0011112
AC189: 0 | AD189: =AVERAGE(#REF!) ->  | AE189: -0.046 | AF189: 0.002 | AG189: 0.072 | AH189: -2.108 | AI189: -2.15 | AJ189: 9.412 | AK189: -0.0044444 | AL189: 0.0006666 | AM189: 0.0002222
AC190: 0 | AD190: =AVERAGE(#REF!) ->  | AE190: -0.034 | AF190: 0.062 | AG190: 0.098 | AH190: -2.1 | AI190: -2.086 | AJ190: 9.44 | AK190: -0.0015556 | AL190: 0.001111 | AM190: 0.0015556
AC191: 0 | AD191: =AVERAGE(#REF!) ->  | AE191: -0.066 | AF191: 0.006 | AG191: 0.084 | AH191: -2.138 | AI191: -2.144 | AJ191: 9.424 | AK191: -0.005111 | AL191: -0.0024446 | AM191: -0.0002222
AC192: 0 | AD192: =AVERAGE(#REF!) ->  | AE192: 0.04 | AF192: -0.048 | AG192: -0.04 | AH192: -2.032 | AI192: -2.2 | AJ192: 9.296 | AK192: -0.002 | AL192: -0.0006668 | AM192: 0.001111
AC193: 0 | AD193: =AVERAGE(#REF!) ->  | AE193: -0.032 | AF193: -0.122 | AG193: -0.078 | AH193: -2.108 | AI193: -2.276 | AJ193: 9.258 | AK193: -0.0046668 | AL193: -0.004 | AM193: 0.0002222
AC194: =(1609.34/3600)*Delta_Speed -> 0 | AD194: =AVERAGE(#REF!) ->  | AE194: -0.214 | AF194: -0.032 | AG194: -0.096 | AH194: -2.29 | AI194: -2.184 | AJ194: 9.238 | AK194: -0.0037778 | AL194: 0.0006666 | AM194: 0.002
AC195: 0 | AD195: =AVERAGE(#REF!) ->  | AE195: -0.226 | AF195: -0.064 | AG195: -0.102 | AH195: -2.302 | AI195: -2.22 | AJ195: 9.232 | AK195: -0.0035556 | AL195: 0.002 | AM195: 0.001111
AC196: 0 | AD196: =AVERAGE(#REF!) ->  | AE196: -0.21 | AF196: -0.016 | AG196: -0.07 | AH196: -2.286 | AI196: -2.172 | AJ196: 9.266 | AK196: -0.0035556 | AL196: 0.0017778 | AM196: 0.0019998
AC197: 0 | AD197: =AVERAGE(#REF!) ->  | AE197: -0.328 | AF197: 0.028 | AG197: 0.072 | AH197: -2.41 | AI197: -2.126 | AJ197: 9.41 | AK197: -0.0051112 | AL197: 0.0006666 | AM197: 0.001111
AC198: 0 | AD198: =AVERAGE(#REF!) ->  | AE198: =AVERAGE(Q194:Q198) -> -0.294 | AF198: =AVERAGE(R194:R198) -> 0.048 | AG198: =AVERAGE(S194:S198) -> 0.092 | AH198: =AVERAGE(T194:T198) -> -2.376 | AI198: =AVERAGE(U194:U198) -> -2.104 | AJ198: =AVERAGE(V194:V198) -> 9.43 | AK198: =AVERAGE(W194:W198) -> -0.0053334 | AL198: =AVERAGE(X194:X198) -> -0.0006668 | AM198: =AVERAGE(Y194:Y198) -> 0.002222
AC199: 0 | AD199: =AVERAGE(#REF!) ->  | AE199: -0.118 | AF199: -0.008 | AG199: 0.104 | AH199: -2.202 | AI199: -2.16 | AJ199: 9.442 | AK199: -0.004 | AL199: -0.0017778 | AM199: 0.0015554
AC200: 0 | AD200: =AVERAGE(#REF!) ->  | AE200: -0.1 | AF200: 0.012 | AG200: 0.104 | AH200: -2.186 | AI200: -2.14 | AJ200: 9.442 | AK200: -0.0048888 | AL200: -0.0042222 | AM200: 0.0017776
... 2050 more rows
